[Event "*** MasterClass Titled Tuesday Blitz"]
[Site "Chess.com"]
[Date "2017.11.07"]
[Round "3"]
[White "GameOverBro"]
[Black "nOcHeaTiNgKiD"]
[Result "1-0"]
[WhiteElo "2321"]
[BlackElo "2193"]
[TimeControl "180+2"]
[EndTime "14:44:26 PST"]
[Termination "GameOverBro won by resignation"]

1. e4 {[%clk 0:03:01.9]} 1... c6 {[%clk 0:02:56.6]} 2. Nc3 {[%clk 0:03:02.1]}
2... d5 {[%clk 0:02:56.9]} 3. Nf3 {[%clk 0:03:03.6]} 3... dxe4 {[%clk
0:02:55.9]} 4. Nxe4 {[%clk 0:03:05.5]} 4... Nf6 {[%clk 0:02:54.4]} 5. Qe2 {[%clk
0:03:04.8]} 5... Bg4 {[%clk 0:02:53.3]} 6. h3 {[%clk 0:03:02.9]} 6... Bxf3
{[%clk 0:02:51.1]} 7. Nxf6+ {[%clk 0:03:03.7]} 7... gxf6 {[%clk 0:02:50.6]} 8.
Qxf3 {[%clk 0:03:05.2]} 8... Qd5 {[%clk 0:02:50.7]} 9. Qb3 {[%clk 0:03:03.9]}
9... Qxb3 {[%clk 0:02:48.2]} 10. axb3 {[%clk 0:03:05.8]} 10... Nd7 {[%clk
0:02:47.1]} 11. b4 {[%clk 0:03:05.3]} 11... a6 {[%clk 0:02:43.4]} 12. b5 {[%clk
0:03:04.5]} 12... cxb5 {[%clk 0:02:42.7]} 13. Bxb5 {[%clk 0:03:06.4]} 13...
O-O-O {[%clk 0:02:43.4]} 14. Be2 {[%clk 0:03:01]} 14... e6 {[%clk 0:02:42.5]}
15. c3 {[%clk 0:02:59.1]} 15... f5 {[%clk 0:02:39.6]} 16. d4 {[%clk 0:02:59.7]}
16... Bd6 {[%clk 0:02:37.6]} 17. Bf3 {[%clk 0:02:54.3]} 17... Rhg8 {[%clk
0:02:36.2]} 18. b4 {[%clk 0:02:48.8]} 18... Nb6 {[%clk 0:02:32.2]} 19. g3 {[%clk
0:02:34]} 19... Kc7 {[%clk 0:02:26.5]} 20. h4 {[%clk 0:02:23.2]} 20... f6 {[%clk
0:02:22.6]} 21. Be3 {[%clk 0:02:17.9]} 21... Nc4 {[%clk 0:02:15.8]} 22. Ke2
{[%clk 0:02:07.5]} 22... Nxe3 {[%clk 0:02:11.4]} 23. Kxe3 {[%clk 0:02:06.6]}
23... e5 {[%clk 0:02:12.1]} 24. Rhd1 {[%clk 0:01:58.4]} 24... Rge8 {[%clk
0:01:52.6]} 25. d5 {[%clk 0:01:55.4]} 25... e4 {[%clk 0:01:40.6]} 26. Bh5 {[%clk
0:01:49.2]} 26... Re7 {[%clk 0:01:39.3]} 27. Ra4 {[%clk 0:01:43.8]} 27... Be5
{[%clk 0:01:33.3]} 28. c4 {[%clk 0:01:43.9]} 28... Red7 {[%clk 0:01:23.6]} 29.
Be2 {[%clk 0:01:24.1]} 29... Rd6 {[%clk 0:00:57.5]} 30. Ra5 {[%clk 0:01:18.1]}
30... Bc3 {[%clk 0:00:52.9]} 31. Rb1 {[%clk 0:01:12.5]} 31... Rb6 {[%clk
0:00:50.2]} 32. Ra4 {[%clk 0:01:03.7]} 32... a5 {[%clk 0:00:50.1]} 33. Rxa5
{[%clk 0:00:57.7]} 33... Bxb4 {[%clk 0:00:48.5]} 34. Raa1 {[%clk 0:00:53]} 34...
Bd6 {[%clk 0:00:44.3]} 35. Rxb6 {[%clk 0:00:51.5]} 35... Kxb6 {[%clk 0:00:44.5]}
36. Rb1+ {[%clk 0:00:53]} 36... Kc7 {[%clk 0:00:45.2]} 37. Rb5 {[%clk
0:00:54.3]} 37... b6 {[%clk 0:00:45.6]} 38. g4 {[%clk 0:00:44.5]} 38... Bc5+
{[%clk 0:00:39.6]} 39. Kf4 {[%clk 0:00:29.9]} 39... fxg4 {[%clk 0:00:38.6]} 40.
Bxg4 {[%clk 0:00:28.7]} 40... Bxf2 {[%clk 0:00:37.9]} 41. Kxe4 {[%clk
0:00:29.9]} 41... Bxh4 {[%clk 0:00:37.6]} 42. Be6 {[%clk 0:00:26.6]} 42... Bf2
{[%clk 0:00:36.6]} 43. Rb2 {[%clk 0:00:27.3]} 43... Bc5 {[%clk 0:00:29.3]} 44.
Ra2 {[%clk 0:00:26.4]} 44... Kb7 {[%clk 0:00:28.1]} 45. Kf5 {[%clk 0:00:27.1]}
45... Bd4 {[%clk 0:00:25.1]} 46. Rh2 {[%clk 0:00:25.7]} 46... Rh8 {[%clk
0:00:22.3]} 47. Bf7 {[%clk 0:00:26.7]} 47... Kc7 {[%clk 0:00:22.3]} 48. Ke6
{[%clk 0:00:28]} 48... h5 {[%clk 0:00:20.6]} 49. d6+ {[%clk 0:00:28.4]} 49...
Kc6 {[%clk 0:00:20.3]} 50. Bxh5 {[%clk 0:00:23.3]} 50... Be5 {[%clk 0:00:19.1]}
51. Bf3+ {[%clk 0:00:23.1]} 1-0

[Event "*** MasterClass Titled Tuesday Blitz"]
[Site "Chess.com"]
[Date "2017.11.07"]
[Round "3"]
[White "jncool68"]
[Black "Blitzstream"]
[Result "0-1"]
[WhiteElo "2453"]
[BlackElo "2483"]
[TimeControl "180+2"]
[EndTime "14:44:33 PST"]
[Termination "Blitzstream won by resignation"]

1. e4 {[%clk 0:03:01.9]} 1... d5 {[%clk 0:03:00.3]} 2. exd5 {[%clk 0:03:02]}
2... Qxd5 {[%clk 0:03:02.2]} 3. Nc3 {[%clk 0:03:02.5]} 3... Qa5 {[%clk
0:03:03.3]} 4. d4 {[%clk 0:03:02.9]} 4... Nf6 {[%clk 0:03:04.2]} 5. Nf3 {[%clk
0:03:03.5]} 5... c6 {[%clk 0:03:05.4]} 6. Ne5 {[%clk 0:03:04.1]} 6... Be6 {[%clk
0:03:06.1]} 7. Bc4 {[%clk 0:03:03]} 7... Bxc4 {[%clk 0:03:06.6]} 8. Nxc4 {[%clk
0:03:03.9]} 8... Qa6 {[%clk 0:02:52.4]} 9. b3 {[%clk 0:02:45.4]} 9... e6 {[%clk
0:02:37.8]} 10. O-O {[%clk 0:02:45.8]} 10... Nbd7 {[%clk 0:02:29.1]} 11. Bf4
{[%clk 0:02:43.5]} 11... Nb6 {[%clk 0:02:22]} 12. Ne3 {[%clk 0:02:19.7]} 12...
Qa5 {[%clk 0:02:15.6]} 13. Ne2 {[%clk 0:02:19.2]} 13... Nbd5 {[%clk 0:02:02.8]}
14. c4 {[%clk 0:02:11.4]} 14... Nxf4 {[%clk 0:02:01.2]} 15. Nxf4 {[%clk
0:02:11.8]} 15... Bd6 {[%clk 0:02:02.3]} 16. Nd3 {[%clk 0:02:10.6]} 16... Qg5
{[%clk 0:01:49.2]} 17. g3 {[%clk 0:02:04.8]} 17... h5 {[%clk 0:01:49]} 18. f4
{[%clk 0:01:55.4]} 18... Qh6 {[%clk 0:01:39.3]} 19. Qe2 {[%clk 0:01:53.6]} 19...
O-O-O {[%clk 0:01:39.5]} 20. Ne5 {[%clk 0:01:49.3]} 20... Bxe5 {[%clk
0:01:32.9]} 21. dxe5 {[%clk 0:01:44.8]} 21... Ng4 {[%clk 0:01:17]} 22. Rad1
{[%clk 0:01:43.1]} 22... Rxd1 {[%clk 0:00:40.4]} 23. Rxd1 {[%clk 0:01:42.1]}
23... Nxe3 {[%clk 0:00:41.9]} 24. Qxe3 {[%clk 0:01:43]} 24... h4 {[%clk
0:00:42.9]} 25. g4 {[%clk 0:01:35.4]} 25... h3 {[%clk 0:00:42.7]} 26. g5 {[%clk
0:01:22.7]} 26... Qh4 {[%clk 0:00:37.9]} 27. Qg3 {[%clk 0:01:17.7]} 27... Qh5
{[%clk 0:00:34.9]} 28. Rd2 {[%clk 0:01:17.1]} 28... Rd8 {[%clk 0:00:33.1]} 29.
Rxd8+ {[%clk 0:01:09.5]} 29... Kxd8 {[%clk 0:00:35]} 30. Kf2 {[%clk 0:01:10.4]}
30... Kc7 {[%clk 0:00:31]} 31. Qf3 {[%clk 0:01:08.2]} 31... Qh4+ {[%clk
0:00:29.4]} 32. Ke2 {[%clk 0:01:09.2]} 32... Qh7 {[%clk 0:00:29.3]} 33. Qd3
{[%clk 0:01:06.8]} 33... Qh5+ {[%clk 0:00:30.2]} 34. Kf2 {[%clk 0:00:56.7]}
34... Qh4+ {[%clk 0:00:30.5]} 35. Kf3 {[%clk 0:00:56.9]} 35... Qe1 {[%clk
0:00:16.5]} 36. Kg4 {[%clk 0:00:57.8]} 36... Qf2 {[%clk 0:00:13.6]} 37. Qxh3
{[%clk 0:00:51.8]} 37... Qxa2 {[%clk 0:00:13.4]} 38. Qg3 {[%clk 0:00:50.6]}
38... Qe2+ {[%clk 0:00:13.8]} 39. Kh4 {[%clk 0:00:51.7]} 39... a5 {[%clk
0:00:12.8]} 40. g6 {[%clk 0:00:52.9]} 40... fxg6 {[%clk 0:00:12.8]} 41. Kg5
{[%clk 0:00:53.9]} 41... Qe4 {[%clk 0:00:13.1]} 42. Qg4 {[%clk 0:00:46.6]} 42...
Qf5+ {[%clk 0:00:12.3]} 43. Qxf5 {[%clk 0:00:47.2]} 43... gxf5 {[%clk
0:00:14.2]} 44. h4 {[%clk 0:00:46.8]} 44... b5 {[%clk 0:00:16.1]} 45. cxb5
{[%clk 0:00:46.7]} 45... cxb5 {[%clk 0:00:18]} 46. Kg6 {[%clk 0:00:47.7]} 46...
a4 {[%clk 0:00:19.6]} 47. bxa4 {[%clk 0:00:49]} 47... bxa4 {[%clk 0:00:20.8]}
48. Kxg7 {[%clk 0:00:50.9]} 48... a3 {[%clk 0:00:22.4]} 49. h5 {[%clk
0:00:52.8]} 49... a2 {[%clk 0:00:23.9]} 50. h6 {[%clk 0:00:54.7]} 50... a1=Q
{[%clk 0:00:25.5]} 51. h7 {[%clk 0:00:56.6]} 51... Qg1+ {[%clk 0:00:26.6]} 52.
Kh8 {[%clk 0:00:53.1]} 52... Qh2 {[%clk 0:00:27.6]} 53. Kg7 {[%clk 0:00:54]}
53... Qg3+ {[%clk 0:00:28.7]} 54. Kf7 {[%clk 0:00:53.7]} 54... Qh4 {[%clk
0:00:29.3]} 55. Kg7 {[%clk 0:00:54]} 55... Qxf4 {[%clk 0:00:29.7]} 0-1

[Event "*** MasterClass Titled Tuesday Blitz"]
[Site "Chess.com"]
[Date "2017.11.07"]
[Round "3"]
[White "MagnusCarlsen"]
[Black "Iball95"]
[Result "1-0"]
[WhiteElo "3040"]
[BlackElo "2583"]
[TimeControl "180+2"]
[EndTime "14:44:34 PST"]
[Termination "MagnusCarlsen won by resignation"]

1. e4 {[%clk 0:03:01.9]} 1... c5 {[%clk 0:03:00.8]} 2. Nf3 {[%clk 0:03:02.3]}
2... Nc6 {[%clk 0:03:02.1]} 3. Bb5 {[%clk 0:03:02.4]} 3... Nf6 {[%clk 0:03:02]}
4. Bxc6 {[%clk 0:03:00.9]} 4... dxc6 {[%clk 0:03:03.9]} 5. d3 {[%clk 0:03:02.5]}
5... Bg4 {[%clk 0:03:03.4]} 6. Nbd2 {[%clk 0:03:03.2]} 6... Qc7 {[%clk
0:03:03.7]} 7. h3 {[%clk 0:03:03.1]} 7... Bh5 {[%clk 0:03:04.7]} 8. a4 {[%clk
0:02:46.9]} 8... e5 {[%clk 0:02:45.3]} 9. Nc4 {[%clk 0:02:46.3]} 9... Bd6 {[%clk
0:02:43.3]} 10. O-O {[%clk 0:02:46.4]} 10... Nd7 {[%clk 0:02:40.7]} 11. Ne3
{[%clk 0:02:46.5]} 11... O-O-O {[%clk 0:02:36.1]} 12. a5 {[%clk 0:02:45.1]}
12... Nf8 {[%clk 0:02:29.8]} 13. Nf5 {[%clk 0:02:43.9]} 13... Ne6 {[%clk
0:02:29.4]} 14. c3 {[%clk 0:02:45.5]} 14... f6 {[%clk 0:02:25.1]} 15. Be3 {[%clk
0:02:44.6]} 15... Bf7 {[%clk 0:02:18.8]} 16. Qa4 {[%clk 0:02:39.3]} 16... g6
{[%clk 0:02:09.9]} 17. Nh6 {[%clk 0:02:39.3]} 17... g5 {[%clk 0:01:58.4]} 18.
Qc4 {[%clk 0:02:35]} 18... Rhf8 {[%clk 0:01:46]} 19. Nxf7 {[%clk 0:02:29.5]}
19... Qxf7 {[%clk 0:01:47.9]} 20. b4 {[%clk 0:02:29.6]} 20... cxb4 {[%clk
0:01:39.4]} 21. a6 {[%clk 0:02:28]} 21... b6 {[%clk 0:01:13.4]} 22. Qxc6+ {[%clk
0:02:26.4]} 22... Qc7 {[%clk 0:01:13.2]} 23. Qd5 {[%clk 0:02:28]} 23... Nf4
{[%clk 0:01:05.3]} 24. Bxf4 {[%clk 0:02:25.5]} 24... gxf4 {[%clk 0:01:07.2]} 25.
Rfc1 {[%clk 0:02:08.6]} 25... bxc3 {[%clk 0:01:07]} 26. Qb3 {[%clk 0:02:08.7]}
26... Kb8 {[%clk 0:00:57]} 27. Rxc3 {[%clk 0:02:09.5]} 27... Bc5 {[%clk
0:00:57.3]} 28. Rac1 {[%clk 0:02:09.9]} 28... Ka8 {[%clk 0:00:58]} 29. Rxc5
{[%clk 0:02:03.3]} 29... bxc5 {[%clk 0:00:58.8]} 30. Rxc5 {[%clk 0:02:05.2]}
30... Qb6 {[%clk 0:00:52.1]} 31. Qc4 {[%clk 0:02:06.5]} 31... h5 {[%clk
0:00:28.3]} 32. Kh2 {[%clk 0:02:05.9]} 32... Qb8 {[%clk 0:00:23.3]} 33. Rc7
{[%clk 0:02:02.4]} 33... Rd6 {[%clk 0:00:23.9]} 34. d4 {[%clk 0:01:35.4]} 34...
Rfd8 {[%clk 0:00:21.5]} 35. dxe5 {[%clk 0:01:30]} 35... fxe5 {[%clk 0:00:23.4]}
36. Rb7 {[%clk 0:01:21.3]} 36... Qc8 {[%clk 0:00:22.7]} 37. Qb5 {[%clk
0:01:20.5]} 37... Rxa6 {[%clk 0:00:21.5]} 38. Rh7 {[%clk 0:01:15.9]} 38... Rb6
{[%clk 0:00:21.2]} 39. Qxe5 {[%clk 0:01:16.9]} 39... Rb7 {[%clk 0:00:20.3]} 40.
Rxh5 {[%clk 0:01:16.6]} 40... Rf8 {[%clk 0:00:12.7]} 41. Qd4 {[%clk 0:01:13.5]}
41... Qd7 {[%clk 0:00:11.6]} 42. Rd5 {[%clk 0:01:14.2]} 42... Qe7 {[%clk
0:00:11.3]} 43. e5 {[%clk 0:01:14.5]} 43... Rb4 {[%clk 0:00:10.8]} 44. Qd3
{[%clk 0:01:13.5]} 44... Rb7 {[%clk 0:00:11.8]} 45. Qe4 {[%clk 0:01:13.6]} 45...
Kb8 {[%clk 0:00:11.9]} 46. e6 {[%clk 0:01:14]} 46... Re8 {[%clk 0:00:13.2]} 47.
Nd4 {[%clk 0:01:14.2]} 47... Rb6 {[%clk 0:00:08.9]} 48. Rd7 {[%clk 0:01:11.3]}
48... Qc5 {[%clk 0:00:06.8]} 49. Qxf4+ {[%clk 0:01:09.9]} 49... Ka8 {[%clk
0:00:08.3]} 50. Qe4+ {[%clk 0:01:10.6]} 50... Kb8 {[%clk 0:00:09.5]} 51. e7
{[%clk 0:01:11.8]} 51... Qc8 {[%clk 0:00:05.8]} 52. Qe5+ {[%clk 0:01:11.5]}
52... Ka8 {[%clk 0:00:07.1]} 53. Qd5+ {[%clk 0:01:12.9]} 53... Kb8 {[%clk
0:00:08.2]} 54. Rd8 {[%clk 0:01:14.2]} 54... Rxe7 {[%clk 0:00:04.1]} 55. Rxc8+
{[%clk 0:01:15.1]} 55... Kxc8 {[%clk 0:00:06]} 56. Qa8+ {[%clk 0:01:16.3]} 56...
Rb8 {[%clk 0:00:04.2]} 57. Qc6+ {[%clk 0:01:16.1]} 57... Rc7 {[%clk 0:00:05.8]}
58. Qa6+ {[%clk 0:01:15]} 58... Kd7 {[%clk 0:00:06.5]} 59. Qe6+ {[%clk
0:01:15.6]} 1-0

[Event "*** MasterClass Titled Tuesday Blitz"]
[Site "Chess.com"]
[Date "2017.11.07"]
[Round "3"]
[White "Ilja_Semjonovs"]
[Black "Aygehovit1992"]
[Result "1-0"]
[WhiteElo "2377"]
[BlackElo "2511"]
[TimeControl "180+2"]
[EndTime "14:44:38 PST"]
[Termination "Ilja_Semjonovs won by resignation"]

1. e4 {[%clk 0:03:01.9]} 1... d6 {[%clk 0:03:00.8]} 2. d4 {[%clk 0:03:02.4]}
2... Nf6 {[%clk 0:03:02.4]} 3. Nc3 {[%clk 0:03:03.6]} 3... g6 {[%clk 0:03:04]}
4. h4 {[%clk 0:03:04.2]} 4... Bg7 {[%clk 0:03:03.3]} 5. Be2 {[%clk 0:03:05.3]}
5... h5 {[%clk 0:03:02.1]} 6. Bg5 {[%clk 0:03:06.7]} 6... c6 {[%clk 0:03:01.5]}
7. a4 {[%clk 0:03:06.2]} 7... Qc7 {[%clk 0:03:02.5]} 8. Qd2 {[%clk 0:03:06.9]}
8... b6 {[%clk 0:03:00.3]} 9. Nh3 {[%clk 0:02:58.8]} 9... Nbd7 {[%clk
0:02:49.1]} 10. O-O {[%clk 0:02:53.6]} 10... Nf8 {[%clk 0:02:46.2]} 11. Nf4
{[%clk 0:02:47.5]} 11... e5 {[%clk 0:02:45]} 12. dxe5 {[%clk 0:02:42.9]} 12...
dxe5 {[%clk 0:02:46.9]} 13. Rfd1 {[%clk 0:02:32.8]} 13... exf4 {[%clk
0:02:14.5]} 14. Bxf4 {[%clk 0:02:28.5]} 14... Qe7 {[%clk 0:02:15.2]} 15. e5
{[%clk 0:02:24.8]} 15... N6h7 {[%clk 0:02:01.4]} 16. Ne4 {[%clk 0:02:19]} 16...
Ne6 {[%clk 0:02:00.2]} 17. Nd6+ {[%clk 0:02:15.8]} 17... Kf8 {[%clk 0:02:01.3]}
18. Bg3 {[%clk 0:02:07.3]} 18... Kg8 {[%clk 0:01:57.9]} 19. c3 {[%clk
0:01:39.4]} 19... Nhf8 {[%clk 0:01:50.9]} 20. Bf3 {[%clk 0:01:23]} 20... Bd7
{[%clk 0:01:49.2]} 21. a5 {[%clk 0:01:22.3]} 21... b5 {[%clk 0:01:45.5]} 22.
Nxb5 {[%clk 0:01:15]} 22... Bh6 {[%clk 0:01:40.4]} 23. Qd6 {[%clk 0:01:14.2]}
23... Qxd6 {[%clk 0:01:38.4]} 24. Nxd6 {[%clk 0:01:16.1]} 24... Bf4 {[%clk
0:01:31.5]} 25. Bxf4 {[%clk 0:01:07.8]} 25... Nxf4 {[%clk 0:01:33.4]} 26. g3
{[%clk 0:01:09.7]} 26... N4e6 {[%clk 0:01:33.8]} 27. b4 {[%clk 0:01:07.7]} 27...
Rb8 {[%clk 0:01:33.5]} 28. Kg2 {[%clk 0:00:58.6]} 28... Nd8 {[%clk 0:01:33.6]}
29. a6 {[%clk 0:00:43.5]} 29... Kg7 {[%clk 0:01:32]} 30. Rd2 {[%clk 0:00:41]}
30... Be6 {[%clk 0:01:29.7]} 31. Ne8+ {[%clk 0:00:36.6]} 31... Kh6 {[%clk
0:01:28.7]} 32. Nf6 {[%clk 0:00:31.7]} 32... Nh7 {[%clk 0:01:28.3]} 33. Nd7
{[%clk 0:00:28.6]} 33... Rc8 {[%clk 0:01:26.3]} 34. Nc5 {[%clk 0:00:27]} 34...
Bf5 {[%clk 0:01:25.9]} 35. Rad1 {[%clk 0:00:24.6]} 35... Ne6 {[%clk 0:01:27.1]}
36. Nxe6 {[%clk 0:00:23.2]} 36... Bxe6 {[%clk 0:01:26.9]} 37. Rd6 {[%clk
0:00:25.1]} 37... c5 {[%clk 0:01:27.2]} 38. b5 {[%clk 0:00:24.2]} 38... Rc7
{[%clk 0:01:23.8]} 39. b6 {[%clk 0:00:22.4]} 39... axb6 {[%clk 0:01:24.4]} 40.
Rxb6 {[%clk 0:00:24.3]} 40... Bg4 {[%clk 0:01:21.8]} 41. Bxg4 {[%clk 0:00:22.8]}
41... hxg4 {[%clk 0:01:23.7]} 42. Rb7 {[%clk 0:00:22.7]} 42... Rxb7 {[%clk
0:00:53.5]} 43. axb7 {[%clk 0:00:24.6]} 43... Rb8 {[%clk 0:00:34.6]} 44. Rd7
{[%clk 0:00:25]} 44... Kg7 {[%clk 0:00:35.6]} 45. e6 {[%clk 0:00:23.3]} 45...
Nf8 {[%clk 0:00:25.3]} 46. Rxf7+ {[%clk 0:00:24.1]} 46... Kg8 {[%clk 0:00:26.4]}
47. Rc7 {[%clk 0:00:20.8]} 47... Nh7 {[%clk 0:00:17.9]} 48. Rc8+ {[%clk
0:00:17.5]} 1-0

[Event "*** MasterClass Titled Tuesday Blitz"]
[Site "Chess.com"]
[Date "2017.11.07"]
[Round "3"]
[White "twitchTriniCupid"]
[Black "Saitama_Hero"]
[Result "1-0"]
[WhiteElo "2094"]
[BlackElo "2150"]
[TimeControl "180+2"]
[EndTime "14:44:38 PST"]
[Termination "twitchTriniCupid won by resignation"]

1. d4 {[%clk 0:03:01.9]} 1... Nf6 {[%clk 0:03:00.2]} 2. c4 {[%clk 0:03:02.6]}
2... g6 {[%clk 0:03:02.1]} 3. Nc3 {[%clk 0:03:04]} 3... Bg7 {[%clk 0:03:02.6]}
4. Bg5 {[%clk 0:03:05.5]} 4... d6 {[%clk 0:03:04.3]} 5. e3 {[%clk 0:03:06.9]}
5... O-O {[%clk 0:03:05.8]} 6. Nf3 {[%clk 0:03:08]} 6... Nbd7 {[%clk 0:03:03.8]}
7. Be2 {[%clk 0:03:09.4]} 7... e5 {[%clk 0:03:05.3]} 8. O-O {[%clk 0:03:10.1]}
8... Re8 {[%clk 0:03:04.7]} 9. Qc2 {[%clk 0:03:11.2]} 9... c6 {[%clk 0:03:05.4]}
10. Rfd1 {[%clk 0:03:07.9]} 10... Qc7 {[%clk 0:03:06.9]} 11. Rac1 {[%clk
0:03:07.1]} 11... h6 {[%clk 0:03:04.5]} 12. Bh4 {[%clk 0:03:07.9]} 12... g5
{[%clk 0:03:05.1]} 13. Bg3 {[%clk 0:03:09]} 13... Nh5 {[%clk 0:03:06.7]} 14. d5
{[%clk 0:02:51.5]} 14... Nxg3 {[%clk 0:03:05.7]} 15. hxg3 {[%clk 0:02:52.1]}
15... a5 {[%clk 0:02:56.2]} 16. dxc6 {[%clk 0:02:31.9]} 16... bxc6 {[%clk
0:02:58.1]} 17. Qd2 {[%clk 0:02:32.9]} 17... Bf8 {[%clk 0:02:55.3]} 18. Ne4
{[%clk 0:02:33.1]} 18... Re6 {[%clk 0:02:55.4]} 19. g4 {[%clk 0:02:31.7]} 19...
Be7 {[%clk 0:02:35.3]} 20. Ng3 {[%clk 0:02:32.2]} 20... Nf6 {[%clk 0:02:33.3]}
21. Nh2 {[%clk 0:02:13]} 21... Bf8 {[%clk 0:02:31.6]} 22. Nf5 {[%clk 0:02:10.1]}
22... Re8 {[%clk 0:02:32.7]} 23. Qc2 {[%clk 0:02:04.2]} 23... e4 {[%clk
0:02:28.3]} 24. Nf1 {[%clk 0:02:02.5]} 24... Bxf5 {[%clk 0:02:27.2]} 25. gxf5
{[%clk 0:02:03.2]} 25... h5 {[%clk 0:02:25]} 26. f3 {[%clk 0:01:46.7]} 26... Qd7
{[%clk 0:02:07.1]} 27. fxe4 {[%clk 0:01:46.9]} 27... Nxe4 {[%clk 0:02:09]} 28.
Bf3 {[%clk 0:01:39]} 28... Nf6 {[%clk 0:02:04.4]} 29. Qc3 {[%clk 0:01:24.9]}
29... Re5 {[%clk 0:01:53.9]} 30. Qxe5 {[%clk 0:01:11.4]} 30... dxe5 {[%clk
0:01:54]} 31. Rxd7 {[%clk 0:01:13.3]} 31... Nxd7 {[%clk 0:01:55.4]} 32. Bxc6
{[%clk 0:01:15]} 32... Ra7 {[%clk 0:01:50.1]} 33. Rd1 {[%clk 0:01:01.3]} 33...
Nf6 {[%clk 0:01:51.1]} 34. e4 {[%clk 0:01:00.9]} 34... Bc5+ {[%clk 0:01:50.2]}
35. Kh2 {[%clk 0:00:57.7]} 35... Ng4+ {[%clk 0:01:49.6]} 36. Kg3 {[%clk
0:00:58.5]} 36... Bd4 {[%clk 0:01:48.5]} 37. b3 {[%clk 0:00:57.1]} 37... Nf2
{[%clk 0:01:40.2]} 38. Rxd4 {[%clk 0:00:53.8]} 38... Nh1+ {[%clk 0:01:34.1]} 39.
Kh2 {[%clk 0:00:54.5]} 39... exd4 {[%clk 0:01:35.3]} 40. Kxh1 {[%clk 0:00:55.6]}
40... Kg7 {[%clk 0:01:30]} 41. Kg1 {[%clk 0:00:55.9]} 41... Kf6 {[%clk
0:01:29.4]} 42. Nd2 {[%clk 0:00:56.2]} 42... g4 {[%clk 0:01:25.1]} 43. Kf2
{[%clk 0:00:55.8]} 43... h4 {[%clk 0:01:24.8]} 44. Bd5 {[%clk 0:00:52.7]} 44...
Kg5 {[%clk 0:01:21.9]} 45. c5 {[%clk 0:00:49.5]} 45... Kf4 {[%clk 0:01:20.8]}
46. c6 {[%clk 0:00:49.2]} 46... d3 {[%clk 0:00:56.7]} 47. Nc4 {[%clk 0:00:36.1]}
47... h3 {[%clk 0:00:24.6]} 48. gxh3 {[%clk 0:00:30.1]} 48... g3+ {[%clk
0:00:26.5]} 49. Kg2 {[%clk 0:00:30.1]} 49... a4 {[%clk 0:00:21.8]} 50. b4 {[%clk
0:00:30.7]} 50... a3 {[%clk 0:00:17.8]} 51. b5 {[%clk 0:00:31.6]} 51... Ra4
{[%clk 0:00:16.8]} 52. c7 {[%clk 0:00:30]} 52... Rb4 {[%clk 0:00:18.2]} 53. c8=Q
{[%clk 0:00:28.6]} 53... Rb2+ {[%clk 0:00:20.1]} 54. Nxb2 {[%clk 0:00:29.3]} 1-0

[Event "*** MasterClass Titled Tuesday Blitz"]
[Site "Chess.com"]
[Date "2017.11.07"]
[Round "3"]
[White "Taron_Shagbazyan"]
[Black "chesssharkattack"]
[Result "1-0"]
[WhiteElo "2564"]
[BlackElo "2365"]
[TimeControl "180+2"]
[EndTime "14:44:46 PST"]
[Termination "Taron_Shagbazyan won by resignation"]

1. d4 {[%clk 0:03:00]} 1... Nf6 {[%clk 0:03:00.8]} 2. c4 {[%clk 0:02:58.1]} 2...
d6 {[%clk 0:03:01.7]} 3. Nc3 {[%clk 0:02:59.6]} 3... Bf5 {[%clk 0:03:03.1]} 4.
g3 {[%clk 0:02:58.1]} 4... e5 {[%clk 0:03:03.5]} 5. e3 {[%clk 0:02:52.7]} 5...
Nc6 {[%clk 0:03:01.9]} 6. Bg2 {[%clk 0:02:53]} 6... Be7 {[%clk 0:03:02.3]} 7.
Nge2 {[%clk 0:02:52.1]} 7... O-O {[%clk 0:03:02.8]} 8. O-O {[%clk 0:02:52.7]}
8... Re8 {[%clk 0:03:03.3]} 9. d5 {[%clk 0:02:47.4]} 9... Na5 {[%clk 0:03:01.1]}
10. b3 {[%clk 0:02:47]} 10... Bf8 {[%clk 0:02:56.9]} 11. e4 {[%clk 0:02:47.8]}
11... Bd7 {[%clk 0:02:55.2]} 12. h3 {[%clk 0:02:46.8]} 12... c5 {[%clk
0:02:56.2]} 13. dxc6 {[%clk 0:02:38.8]} 13... bxc6 {[%clk 0:02:57]} 14. g4
{[%clk 0:02:31.8]} 14... Be6 {[%clk 0:02:47.2]} 15. Ng3 {[%clk 0:02:27.6]} 15...
Qc7 {[%clk 0:02:45.6]} 16. Be3 {[%clk 0:02:22.2]} 16... Nd7 {[%clk 0:02:46.5]}
17. Rc1 {[%clk 0:02:18.7]} 17... Rad8 {[%clk 0:02:43.9]} 18. g5 {[%clk
0:02:13.4]} 18... g6 {[%clk 0:02:41.4]} 19. h4 {[%clk 0:02:13.7]} 19... Nc5
{[%clk 0:02:34.4]} 20. Qe2 {[%clk 0:02:12]} 20... Nab7 {[%clk 0:01:56.3]} 21. b4
{[%clk 0:01:52.2]} 21... Nd7 {[%clk 0:01:50]} 22. b5 {[%clk 0:01:52.4]} 22...
Nbc5 {[%clk 0:01:45.9]} 23. bxc6 {[%clk 0:01:52.4]} 23... Qxc6 {[%clk
0:01:47.8]} 24. Nd5 {[%clk 0:01:53]} 24... Bg7 {[%clk 0:01:44.1]} 25. h5 {[%clk
0:01:46.7]} 25... Bxd5 {[%clk 0:01:44.5]} 26. cxd5 {[%clk 0:01:44.4]} 26... Qa4
{[%clk 0:01:44.5]} 27. hxg6 {[%clk 0:01:32]} 27... fxg6 {[%clk 0:01:41.1]} 28.
f3 {[%clk 0:01:28.8]} 28... Rb8 {[%clk 0:01:37.5]} 29. Bh3 {[%clk 0:01:29.2]}
29... Qb5 {[%clk 0:01:27.9]} 30. Rc2 {[%clk 0:01:21.1]} 30... Qxe2 {[%clk
0:01:17.5]} 31. Nxe2 {[%clk 0:01:22.1]} 31... Red8 {[%clk 0:01:08.6]} 32. Rfc1
{[%clk 0:01:21.9]} 32... Rb7 {[%clk 0:01:05.7]} 33. Rd1 {[%clk 0:01:08.3]} 33...
Na4 {[%clk 0:01:03.2]} 34. Nc1 {[%clk 0:01:06.5]} 34... Ndc5 {[%clk 0:01:04]}
35. Nd3 {[%clk 0:01:03.2]} 35... Bf8 {[%clk 0:01:01]} 36. Nxc5 {[%clk
0:00:59.1]} 36... Nxc5 {[%clk 0:01:02.9]} 37. Kg2 {[%clk 0:00:49.9]} 37... Rb6
{[%clk 0:01:01.2]} 38. Kf2 {[%clk 0:00:42.1]} 38... Rdb8 {[%clk 0:01:01.8]} 39.
Ke2 {[%clk 0:00:43.1]} 39... Rb2 {[%clk 0:01:02.4]} 40. Rxb2 {[%clk 0:00:43.3]}
40... Rxb2+ {[%clk 0:01:04.3]} 41. Rd2 {[%clk 0:00:44.6]} 41... Rb5 {[%clk
0:00:59.3]} 42. Rc2 {[%clk 0:00:44.6]} 42... h5 {[%clk 0:00:56.5]} 43. gxh6
{[%clk 0:00:44.8]} 43... Kh7 {[%clk 0:00:57.7]} 44. Bg4 {[%clk 0:00:37.1]} 44...
Be7 {[%clk 0:00:58.1]} 45. Bh3 {[%clk 0:00:30.2]} 45... a5 {[%clk 0:00:54.3]}
46. Kf2 {[%clk 0:00:30.4]} 46... a4 {[%clk 0:00:53]} 47. Kg3 {[%clk 0:00:30.5]}
47... Rb4 {[%clk 0:00:47.6]} 48. Bg2 {[%clk 0:00:28.7]} 48... Bf8 {[%clk
0:00:23.4]} 49. Bf1 {[%clk 0:00:27]} 49... Bxh6 {[%clk 0:00:21.1]} 50. Rh2
{[%clk 0:00:26.7]} 50... g5 {[%clk 0:00:10.9]} 51. Bxg5 {[%clk 0:00:27.3]} 51...
Kg6 {[%clk 0:00:12.8]} 52. Bxh6 {[%clk 0:00:28.3]} 52... a3 {[%clk 0:00:14.3]}
53. Be3 {[%clk 0:00:29.1]} 53... Rb2 {[%clk 0:00:15.1]} 54. Bxc5 {[%clk
0:00:30.1]} 1-0